[Event "FIDE U16 Olympiad_boards_1-80"]
[Site "Eindhoven, Netherlands"]
[Date "2023.08.13"]
[Round "1.54"]
[White "Savitskiy, Vladimir"]
[Black "Han, Johnathan"]
[Result "0-1"]
[TimeControl "2700+10"]
[WhiteElo "1513"]
[BlackElo "2199"]

1. d4 {[%clk 00:45:13]} {[%emt 00:00:06]} Nf6 {[%clk 00:45:15]} {[%emt
00:00:05]} 2. Nc3 {[%clk 00:45:15]} {[%emt 00:00:09]} d5 {[%clk 00:45:18]}
{[%emt 00:00:06]} 3. Bf4 {[%clk 00:45:23]} {[%emt 00:00:03]} g6 {[%clk
00:45:12]} {[%emt 00:00:15]} 4. e3 {[%clk 00:45:27]} {[%emt 00:00:06]} Bg7
{[%clk 00:45:18]} {[%emt 00:00:04]} 5. h4 {[%clk 00:45:36]} {[%emt 00:00:01]}
h5 {[%clk 00:45:18]} {[%emt 00:00:10]} 6. Nf3 {[%clk 00:45:38]} {[%emt
00:00:08]} O-O {[%clk 00:43:57]} {[%emt 00:01:31]} 7. Ne5 {[%clk 00:45:37]}
{[%emt 00:00:12]} c5 {[%clk 00:43:53]} {[%emt 00:00:13]} 8. Qd2 {[%clk
00:44:27]} {[%emt 00:01:21]} cxd4 {[%clk 00:42:14]} {[%emt 00:01:49]} 9. exd4
{[%clk 00:44:12]} {[%emt 00:00:24]} Nc6 {[%clk 00:42:20]} {[%emt 00:00:04]} 10.
Bb5 {[%clk 00:43:07]} {[%emt 00:01:16]} Bd7 {[%clk 00:35:38]} {[%emt 00:06:52]}
11. Bxc6 {[%clk 00:42:46]} {[%emt 00:00:31]} bxc6 {[%clk 00:35:20]} {[%emt
00:00:28]} 12. O-O-O {[%clk 00:42:11]} {[%emt 00:00:44]} Qa5 {[%clk 00:32:40]}
{[%emt 00:02:49]} 13. Kb1 {[%clk 00:41:33]} {[%emt 00:00:49]} Rfc8 {[%clk
00:28:45]} {[%emt 00:04:05]} 14. Ne4 {[%clk 00:40:21]} {[%emt 00:01:23]} Qxd2
{[%clk 00:28:46]} {[%emt 00:00:09]} 15. Nxd2 {[%clk 00:40:28]} {[%emt
00:00:02]} Bf5 {[%clk 00:27:55]} {[%emt 00:01:01]} 16. Nb3 {[%clk 00:39:56]}
{[%emt 00:00:42]} Ne4 {[%clk 00:27:45]} {[%emt 00:00:20]} 17. Nd3 {[%clk
00:38:20]} {[%emt 00:01:47]} f6 {[%clk 00:27:08]} {[%emt 00:00:47]} 18. f3
{[%clk 00:38:05]} {[%emt 00:00:24]} Nd6 {[%clk 00:27:16]} {[%emt 00:00:02]} 19.
Rhe1 {[%clk 00:37:16]} {[%emt 00:01:00]} Kf7 {[%clk 00:27:22]} {[%emt
00:00:03]} 20. Nbc5 {[%clk 00:36:30]} {[%emt 00:00:57]} Re8 {[%clk 00:26:49]}
{[%emt 00:00:42]} 21. Re2 {[%clk 00:34:01]} {[%emt 00:02:40]} Nb5 {[%clk
00:26:12]} {[%emt 00:00:46]} 22. Nb3 {[%clk 00:24:27]} {[%emt 00:09:45]} Bxd3
{[%clk 00:24:46]} {[%emt 00:01:36]} 23. cxd3 {[%clk 00:24:26]} {[%emt
00:00:10]} e5 {[%clk 00:24:18]} {[%emt 00:00:39]} 24. dxe5 {[%clk 00:24:16]}
{[%emt 00:00:20]} fxe5 {[%clk 00:24:25]} {[%emt 00:00:02]} 25. Bh2 {[%clk
00:23:10]} {[%emt 00:01:16]} a5 {[%clk 00:18:44]} {[%emt 00:05:51]} 26. a4
{[%clk 00:22:43]} {[%emt 00:00:38]} Nd6 {[%clk 00:18:50]} {[%emt 00:00:04]} 27.
Rde1 {[%clk 00:22:39]} {[%emt 00:00:14]} Nf5 {[%clk 00:15:37]} {[%emt
00:03:23]} 28. Bxe5 {[%clk 00:16:53]} {[%emt 00:05:56]} Bxe5 {[%clk 00:15:44]}
{[%emt 00:00:02]} 29. Rxe5 {[%clk 00:17:02]} {[%emt 00:00:01]} Nxh4 {[%clk
00:14:44]} {[%emt 00:01:11]} 30. Rxe8 {[%clk 00:17:06]} {[%emt 00:00:06]} Rxe8
{[%clk 00:14:53]} {[%emt 00:00:02]} 31. Rxe8 {[%clk 00:17:14]} {[%emt
00:00:01]} Kxe8 {[%clk 00:15:01]} {[%emt 00:00:02]} 32. Nxa5 {[%clk 00:17:23]}
Nxg2 {[%clk 00:11:28]} {[%emt 00:03:43]} 33. Nxc6 {[%clk 00:17:00]} {[%emt
00:00:33]} h4 {[%clk 00:11:36]} {[%emt 00:00:02]} 34. Ne5 {[%clk 00:17:09]} Ne3
{[%clk 00:11:38]} {[%emt 00:00:08]} 35. f4 {[%clk 00:17:17]} {[%emt 00:00:02]}
h3 {[%clk 00:11:25]} {[%emt 00:00:23]} 36. Nf3 {[%clk 00:17:25]} {[%emt
00:00:03]} Nf1 {[%clk 00:11:24]} {[%emt 00:00:10]} 37. a5 {[%clk 00:17:07]}
{[%emt 00:00:28]} Nd2+ {[%clk 00:09:51]} {[%emt 00:01:43]} 38. Ka2 {[%clk
00:17:04]} {[%emt 00:00:13]} Nxf3 {[%clk 00:09:57]} {[%emt 00:00:05]} 39. a6
{[%clk 00:17:07]} {[%emt 00:00:07]} h2 {[%clk 00:09:59]} {[%emt 00:00:07]} 40.
a7 {[%clk 00:17:15]} {[%emt 00:00:02]} h1=Q {[%clk 00:10:02]} {[%emt 00:00:06]}
41. a8=Q+ {[%clk 00:17:23]} {[%emt 00:00:03]} Ke7 {[%clk 00:09:47]} {[%emt
00:00:25]} 42. Qb7+ {[%clk 00:17:28]} {[%emt 00:00:03]} Ke6 {[%clk 00:09:14]}
{[%emt 00:00:45]} 43. Qc8+ {[%clk 00:17:09]} {[%emt 00:00:29]} Ke7 {[%clk
00:08:33]} {[%emt 00:00:51]} 44. Qc7+ {[%clk 00:17:16]} {[%emt 00:00:03]} Kf6
{[%clk 00:08:32]} {[%emt 00:00:09]} 45. Qd8+ {[%clk 00:17:09]} {[%emt
00:00:18]} Kf5 {[%clk 00:08:26]} {[%emt 00:00:16]} 46. Qf8+ {[%clk 00:17:18]}
{[%emt 00:00:02]} Kg4 {[%clk 00:08:30]} {[%emt 00:00:07]} 47. Qg8 {[%clk
00:17:21]} {[%emt 00:00:06]} Qh5 {[%clk 00:08:30]} {[%emt 00:00:10]} 48. b4
{[%clk 00:17:11]} {[%emt 00:00:20]} Nd4 {[%clk 00:08:15]} {[%emt 00:00:25]} 49.
Qg7 {[%clk 00:16:16]} {[%emt 00:01:05]} Ne6 {[%clk 00:07:30]} {[%emt 00:00:55]}
50. Qd7 {[%clk 00:16:04]} {[%emt 00:00:22]} Qf5 {[%clk 00:07:38]} {[%emt
00:00:02]} 51. b5 {[%clk 00:15:58]} {[%emt 00:00:15]} Nd4 {[%clk 00:07:44]}
{[%emt 00:00:04]} 52. Qb7 {[%clk 00:14:20]} {[%emt 00:01:49]} Qxd3 {[%clk
00:07:50]} {[%emt 00:00:04]} 53. Qc8+ {[%clk 00:12:58]} {[%emt 00:01:31]} Kg3
{[%clk 00:07:49]} {[%emt 00:00:12]} 54. Kb2 {[%clk 00:12:26]} {[%emt 00:00:42]}
Qxb5+ {[%clk 00:07:43]} {[%emt 00:00:16]} 55. Kc3 {[%clk 00:12:35]} {[%emt
00:00:01]} Qc6+ {[%clk 00:07:48]} {[%emt 00:00:05]} 0-1

[Event "FIDE U16 Olympiad_boards_1-80"]
[Site "Eindhoven, Netherlands"]
[Date "2023.08.13"]
[Round "1.55"]
[White "Chen, Max"]
[Black "Momyn, Madina"]
[Result "1-0"]
[TimeControl "2700+10"]
[WhiteElo "2049"]
[BlackElo "1469"]

1. e4 {[%clk 00:45:16]} {[%emt 00:00:03]} c6 {[%clk 00:45:19]} {[%emt
00:00:02]} 2. Nf3 {[%clk 00:45:06]} {[%emt 00:00:19]} d5 {[%clk 00:45:19]}
{[%emt 00:00:11]} 3. exd5 {[%clk 00:45:13]} {[%emt 00:00:02]} cxd5 {[%clk
00:45:21]} {[%emt 00:00:09]} 4. Ne5 {[%clk 00:45:19]} {[%emt 00:00:03]} Nf6
{[%clk 00:43:59]} {[%emt 00:01:33]} 5. d4 {[%clk 00:45:21]} {[%emt 00:00:07]}
Nbd7 {[%clk 00:38:33]} {[%emt 00:05:36]} 6. Bd3 {[%clk 00:44:17]} {[%emt
00:01:13]} Qc7 {[%clk 00:32:55]} {[%emt 00:05:49]} 7. Qe2 {[%clk 00:40:18]}
{[%emt 00:04:09]} e6 {[%clk 00:32:26]} {[%emt 00:00:39]} 8. O-O {[%clk
00:39:57]} {[%emt 00:00:31]} Bd6 {[%clk 00:32:32]} {[%emt 00:00:05]} 9. Re1
{[%clk 00:37:39]} {[%emt 00:02:27]} O-O {[%clk 00:31:35]} {[%emt 00:01:07]} 10.
c3 {[%clk 00:36:05]} {[%emt 00:01:45]} Re8 {[%clk 00:25:55]} {[%emt 00:05:49]}
11. Nd2 {[%clk 00:32:02]} {[%emt 00:04:13]} Nf8 {[%clk 00:23:53]} {[%emt
00:02:11]} 12. Ndf3 {[%clk 00:30:34]} {[%emt 00:01:39]} N6d7 {[%clk 00:23:07]}
{[%emt 00:00:56]} 13. h4 {[%clk 00:27:49]} {[%emt 00:02:54]} f6 {[%clk
00:20:33]} {[%emt 00:02:45]} 14. Ng4 {[%clk 00:27:51]} {[%emt 00:00:08]} e5
{[%clk 00:18:48]} {[%emt 00:01:55]} 15. dxe5 {[%clk 00:21:50]} {[%emt
00:06:11]} Nxe5 {[%clk 00:18:37]} {[%emt 00:00:21]} 16. Ne3 {[%clk 00:20:24]}
{[%emt 00:01:36]} Bg4 {[%clk 00:17:32]} {[%emt 00:01:15]} 17. Bc2 {[%clk
00:14:36]} {[%emt 00:05:58]} Nxf3+ {[%clk 00:10:49]} {[%emt 00:06:53]} 18. gxf3
{[%clk 00:14:40]} {[%emt 00:00:06]} Bh5 {[%clk 00:07:43]} {[%emt 00:03:16]} 19.
Qd1 {[%clk 00:14:11]} {[%emt 00:00:39]} Bf7 {[%clk 00:07:15]} {[%emt 00:00:38]}
20. Nf5 {[%clk 00:12:20]} {[%emt 00:02:00]} Rxe1+ {[%clk 00:06:07]} {[%emt
00:01:19]} 21. Qxe1 {[%clk 00:12:28]} {[%emt 00:00:02]} Re8 {[%clk 00:06:08]}
{[%emt 00:00:09]} 22. Be3 {[%clk 00:12:31]} {[%emt 00:00:06]} Bc5 {[%clk
00:05:45]} {[%emt 00:00:34]} 23. Rd1 {[%clk 00:11:42]} {[%emt 00:00:59]} Ng6
{[%clk 00:05:08]} {[%emt 00:00:48]} 24. Qd2 {[%clk 00:11:13]} {[%emt 00:00:38]}
Ne5 {[%clk 00:03:24]} {[%emt 00:01:53]} 25. Kg2 {[%clk 00:11:11]} {[%emt
00:00:12]} Nc4 {[%clk 00:02:42]} {[%emt 00:00:53]} 26. Qc1 {[%clk 00:08:49]}
{[%emt 00:02:32]} Nxe3+ {[%clk 00:01:32]} {[%emt 00:01:20]} 27. fxe3 {[%clk
00:08:46]} {[%emt 00:00:12]} Bg6 {[%clk 00:01:02]} {[%emt 00:00:41]} 28. Rxd5
{[%clk 00:03:29]} {[%emt 00:05:28]} Bxf5 {[%clk 00:00:42]} {[%emt 00:00:29]} 29.
Bxf5 {[%clk 00:03:19]} {[%emt 00:00:20]} Bxe3 {[%clk 00:00:18]} {[%emt
00:00:34]} 30. Qd1 {[%clk 00:02:05]} {[%emt 00:01:24]} Bf2 {[%clk 00:00:14]}
{[%emt 00:00:14]} 31. Rd6 {[%clk 00:02:14]} {[%emt 00:00:01]} Bc5 {[%clk
00:00:20]} {[%emt 00:00:05]} 32. Rd7 {[%clk 00:01:09]} {[%emt 00:01:14]} Qe5
{[%clk 00:00:25]} {[%emt 00:00:05]} 33. Be4 {[%clk 00:00:57]} {[%emt 00:00:22]}
Bb6 {[%clk 00:00:22]} {[%emt 00:00:13]} 34. Qb3+ {[%clk 00:00:48]} {[%emt
00:00:18]} Kh8 {[%clk 00:00:29]} {[%emt 00:00:03]} 35. Qf7 {[%clk 00:00:46]}
{[%emt 00:00:12]} Rg8 {[%clk 00:00:26]} {[%emt 00:00:14]} 36. Rd5 {[%clk
00:00:41]} {[%emt 00:00:15]} Qe8 {[%clk 00:00:21]} {[%emt 00:00:15]} 37. Qxb7
{[%clk 00:00:23]} {[%emt 00:00:28]} f5 {[%clk 00:00:17]} {[%emt 00:00:14]} 38.
Rxf5 {[%clk 00:00:31]} {[%emt 00:00:02]} Qd8 {[%clk 00:00:24]} {[%emt
00:00:02]} 39. Qd5 {[%clk 00:00:30]} {[%emt 00:00:12]} Qxh4 {[%clk 00:00:33]}
{[%emt 00:00:01]} 40. Qxg8+ {[%clk 00:00:39]} 1-0

[Event "FIDE U16 Olympiad_boards_1-80"]
[Site "Eindhoven, Netherlands"]
[Date "2023.08.13"]
[Round "1.56"]
[White "Kazhiakhmetova, Yerkenaz"]
[Black "Jiang, Kate Yuhua"]
[Result "1-0"]
[TimeControl "2700+10"]
[WhiteElo "1379"]
[BlackElo "1770"]

1. d4 {[%clk 00:45:15]} {[%emt 00:00:04]} d5 {[%clk 00:45:18]} {[%emt
00:00:03]} 2. Nf3 {[%clk 00:45:17]} {[%emt 00:00:08]} Nf6 {[%clk 00:45:26]}
{[%emt 00:00:02]} 3. g3 {[%clk 00:45:26]} {[%emt 00:00:01]} e6 {[%clk
00:45:13]} {[%emt 00:00:23]} 4. Bg2 {[%clk 00:45:34]} {[%emt 00:00:01]} c5
{[%clk 00:45:17]} {[%emt 00:00:06]} 5. O-O {[%clk 00:44:31]} {[%emt 00:01:11]}
Nc6 {[%clk 00:45:24]} {[%emt 00:00:05]} 6. c4 {[%clk 00:43:36]} {[%emt
00:01:05]} dxc4 {[%clk 00:42:55]} {[%emt 00:02:40]} 7. dxc5 {[%clk 00:43:18]}
{[%emt 00:00:27]} Qxd1 {[%clk 00:42:12]} {[%emt 00:00:54]} 8. Rxd1 {[%clk
00:43:25]} {[%emt 00:00:01]} Bxc5 {[%clk 00:42:14]} {[%emt 00:00:09]} 9. Nbd2
{[%clk 00:43:21]} {[%emt 00:00:14]} Ng4 {[%clk 00:39:38]} {[%emt 00:02:46]} 10.
Ne4 {[%clk 00:40:40]} {[%emt 00:02:51]} Be7 {[%clk 00:38:13]} {[%emt 00:01:35]}
11. h3 {[%clk 00:37:28]} {[%emt 00:03:22]} Nge5 {[%clk 00:35:15]} {[%emt
00:03:08]} 12. Nxe5 {[%clk 00:34:44]} {[%emt 00:02:53]} Nxe5 {[%clk 00:35:23]}
{[%emt 00:00:03]} 13. Bf4 {[%clk 00:34:48]} {[%emt 00:00:06]} Nd7 {[%clk
00:31:35]} {[%emt 00:03:58]} 14. Nd6+ {[%clk 00:33:43]} {[%emt 00:01:15]} Bxd6
{[%clk 00:31:25]} {[%emt 00:00:19]} 15. Bxd6 {[%clk 00:33:51]} {[%emt
00:00:03]} f6 {[%clk 00:26:24]} {[%emt 00:05:11]} 16. Rac1 {[%clk 00:33:16]}
{[%emt 00:00:45]} Nb6 {[%clk 00:24:04]} {[%emt 00:02:29]} 17. Kh2 {[%clk
00:29:49]} {[%emt 00:03:38]} Kf7 {[%clk 00:17:07]} {[%emt 00:07:07]} 18. Bc7
{[%clk 00:28:13]} {[%emt 00:01:45]} e5 {[%clk 00:12:09]} {[%emt 00:05:09]} 19.
a3 {[%clk 00:21:31]} {[%emt 00:06:52]} Be6 {[%clk 00:01:11]} {[%emt 00:11:08]}
20. Bxb7 {[%clk 00:18:20]} {[%emt 00:03:21]} Rae8 {[%clk 00:01:12]} {[%emt
00:00:09]} 21. Bxb6 {[%clk 00:17:59]} {[%emt 00:00:31]} axb6 {[%clk 00:01:19]}
{[%emt 00:00:03]} 22. Ba6 {[%clk 00:17:25]} {[%emt 00:00:45]} Rd8 {[%clk
00:01:00]} {[%emt 00:00:29]} 23. Rxd8 {[%clk 00:14:40]} {[%emt 00:02:55]} Rxd8
{[%clk 00:01:08]} {[%emt 00:00:02]} 24. Bxc4 {[%clk 00:13:09]} {[%emt
00:01:41]} Rd6 {[%clk 00:01:10]} {[%emt 00:00:07]} 25. Bxe6+ {[%clk 00:11:45]}
{[%emt 00:01:34]} Rxe6 {[%clk 00:01:10]} {[%emt 00:00:10]} 26. Rc7+ {[%clk
00:11:42]} {[%emt 00:00:14]} Kg6 {[%clk 00:01:17]} {[%emt 00:00:03]} 27. g4
{[%clk 00:11:21]} {[%emt 00:00:30]} Rd6 {[%clk 00:01:00]} {[%emt 00:00:27]} 28.
Rc2 {[%clk 00:07:13]} {[%emt 00:04:19]} h5 {[%clk 00:00:46]} {[%emt 00:00:24]}
29. Kg3 {[%clk 00:06:32]} {[%emt 00:00:50]} Kh6 {[%clk 00:00:45]} {[%emt
00:00:11]} 30. e3 {[%clk 00:05:43]} {[%emt 00:01:00]} g5 {[%clk 00:00:41]}
{[%emt 00:00:13]} 31. Kf3 {[%clk 00:04:58]} {[%emt 00:00:55]} Kg6 {[%clk
00:00:26]} {[%emt 00:00:26]} 32. Rc8 {[%clk 00:03:57]} {[%emt 00:01:10]} hxg4+
{[%clk 00:00:25]} {[%emt 00:00:12]} 33. hxg4 {[%clk 00:04:00]} {[%emt
00:00:07]} Rd2 {[%clk 00:00:25]} {[%emt 00:00:10]} 34. b4 {[%clk 00:03:39]}
{[%emt 00:00:30]} Rd6 {[%clk 00:00:17]} {[%emt 00:00:18]} 35. Rb8 {[%clk
00:03:21]} {[%emt 00:00:28]} Kf7 {[%clk 00:00:15]} {[%emt 00:00:13]} 36. a4
{[%clk 00:02:39]} {[%emt 00:00:52]} Ke7 {[%clk 00:00:14]} {[%emt 00:00:11]} 37.
a5 {[%clk 00:01:59]} {[%emt 00:00:50]} bxa5 {[%clk 00:00:22]} {[%emt 00:00:01]}
38. bxa5 {[%clk 00:02:06]} {[%emt 00:00:03]} Ra6 {[%clk 00:00:12]} {[%emt
00:00:20]} 39. Rb5 {[%clk 00:02:15]} {[%emt 00:00:01]} Kd7 {[%clk 00:00:11]}
{[%emt 00:00:12]} 40. Ke4 {[%clk 00:02:24]} {[%emt 00:00:01]} Ke7 {[%clk
00:00:12]} {[%emt 00:00:09]} 41. Kf5 {[%clk 00:01:57]} {[%emt 00:00:37]} Ra7
{[%clk 00:00:16]} {[%emt 00:00:06]} 42. f3 {[%clk 00:01:49]} {[%emt 00:00:17]}
Kf7 {[%clk 00:00:12]} {[%emt 00:00:14]} 43. Ke4 {[%clk 00:01:12]} {[%emt
00:00:47]} Ke7 {[%clk 00:00:18]} {[%emt 00:00:04]} 44. Kd5 {[%clk 00:01:09]}
{[%emt 00:00:12]} Kd7 {[%clk 00:00:20]} {[%emt 00:00:09]} 45. Kc4 {[%clk
00:00:53]} {[%emt 00:00:26]} Ke7 {[%clk 00:00:15]} {[%emt 00:00:16]} 46. Kb4
{[%clk 00:01:02]} Kf7 {[%clk 00:00:11]} {[%emt 00:00:14]} 47. Rb6 {[%clk
00:01:06]} {[%emt 00:00:06]} Ke7 {[%clk 00:00:11]} {[%emt 00:00:11]} 48. Kb5
{[%clk 00:01:15]} Ra8 {[%clk 00:00:11]} {[%emt 00:00:10]} 49. a6 {[%clk
00:01:22]} {[%emt 00:00:03]} Rc8 {[%clk 00:00:12]} {[%emt 00:00:09]} 50. a7
{[%clk 00:01:13]} {[%emt 00:00:18]} Ra8 {[%clk 00:00:12]} {[%emt 00:00:10]} 51.
Ka6 {[%clk 00:01:22]} {[%emt 00:00:02]} Kd7 {[%clk 00:00:15]} {[%emt 00:00:07]}
52. Kb7 {[%clk 00:01:29]} {[%emt 00:00:02]} 1-0

[Event "FIDE U16 Olympiad_boards_1-80"]
[Site "Eindhoven, Netherlands"]
[Date "2023.08.13"]
[Round "1.57"]
[White "Hashimoto, Shunji"]
[Black "Piliposyan, Robert"]
[Result "0-1"]
[TimeControl "2700+10"]
[WhiteElo "1789"]
[BlackElo "2265"]

1. d4 {[%clk 00:45:17]} {[%emt 00:00:02]} Nf6 {[%clk 00:45:14]} {[%emt
00:00:06]} 2. Nf3 {[%clk 00:45:24]} {[%emt 00:00:03]} d5 {[%clk 00:45:20]}
{[%emt 00:00:04]} 3. Bf4 {[%clk 00:45:30]} {[%emt 00:00:04]} c5 {[%clk
00:43:51]} {[%emt 00:01:40]} 4. c3 {[%clk 00:45:03]} {[%emt 00:00:36]} e6
{[%clk 00:41:58]} {[%emt 00:02:03]} 5. e3 {[%clk 00:44:28]} {[%emt 00:00:45]}
Nc6 {[%clk 00:42:01]} {[%emt 00:00:07]} 6. Bd3 {[%clk 00:44:23]} {[%emt
00:00:15]} Bd6 {[%clk 00:41:49]} {[%emt 00:00:22]} 7. Bg3 {[%clk 00:44:07]}
{[%emt 00:00:26]} O-O {[%clk 00:41:47]} {[%emt 00:00:12]} 8. Nbd2 {[%clk
00:44:00]} {[%emt 00:00:17]} Qe7 {[%clk 00:39:48]} {[%emt 00:02:08]} 9. O-O
{[%clk 00:40:06]} {[%emt 00:04:05]} Bxg3 {[%clk 00:39:40]} {[%emt 00:00:18]} 10.
hxg3 {[%clk 00:40:13]} {[%emt 00:00:03]} e5 {[%clk 00:39:42]} {[%emt 00:00:07]}
11. dxe5 {[%clk 00:39:58]} {[%emt 00:00:26]} Nxe5 {[%clk 00:39:50]} {[%emt
00:00:02]} 12. Nxe5 {[%clk 00:40:00]} {[%emt 00:00:08]} Qxe5 {[%clk 00:39:58]}
{[%emt 00:00:02]} 13. Nf3 {[%clk 00:40:06]} {[%emt 00:00:04]} Qc7 {[%clk
00:38:36]} {[%emt 00:01:31]} 14. Qc2 {[%clk 00:39:26]} {[%emt 00:00:51]} h6
{[%clk 00:37:29]} {[%emt 00:01:17]} 15. Rad1 {[%clk 00:37:29]} {[%emt
00:02:08]} Be6 {[%clk 00:36:08]} {[%emt 00:01:30]} 16. Be2 {[%clk 00:33:23]}
{[%emt 00:04:17]} Rad8 {[%clk 00:35:05]} {[%emt 00:01:13]} 17. Nd2 {[%clk
00:32:18]} {[%emt 00:01:15]} Rd7 {[%clk 00:33:15]} {[%emt 00:02:00]} 18. Bf3
{[%clk 00:28:41]} {[%emt 00:03:47]} Rfd8 {[%clk 00:32:37]} {[%emt 00:00:46]} 19.
Nb3 {[%clk 00:27:52]} {[%emt 00:01:00]} b6 {[%clk 00:32:37]} {[%emt 00:00:11]}
20. Rd2 {[%clk 00:27:04]} {[%emt 00:00:58]} Qe5 {[%clk 00:32:24]} {[%emt
00:00:22]} 21. Rfd1 {[%clk 00:26:50]} {[%emt 00:00:25]} Bf5 {[%clk 00:32:24]}
{[%emt 00:00:09]} 22. Qc1 {[%clk 00:26:40]} {[%emt 00:00:20]} g5 {[%clk
00:30:46]} {[%emt 00:01:48]} 23. Re1 {[%clk 00:24:52]} {[%emt 00:01:59]} g4
{[%clk 00:30:30]} {[%emt 00:00:25]} 24. Be2 {[%clk 00:24:31]} {[%emt 00:00:31]}
Ne4 {[%clk 00:30:37]} {[%emt 00:00:03]} 25. Rdd1 {[%clk 00:24:19]} {[%emt
00:00:22]} h5 {[%clk 00:29:05]} {[%emt 00:01:42]} 26. Nd2 {[%clk 00:22:40]}
{[%emt 00:01:50]} Nf6 {[%clk 00:26:24]} {[%emt 00:02:49]} 27. c4 {[%clk
00:21:18]} {[%emt 00:01:33]} Be6 {[%clk 00:24:44]} {[%emt 00:01:50]} 28. cxd5
{[%clk 00:20:09]} {[%emt 00:01:19]} Bxd5 {[%clk 00:22:35]} {[%emt 00:02:19]} 29.
Bb5 {[%clk 00:19:09]} {[%emt 00:01:11]} Rd6 {[%clk 00:22:17]} {[%emt 00:00:27]}
30. b3 {[%clk 00:15:56]} {[%emt 00:03:23]} Bb7 {[%clk 00:20:20]} {[%emt
00:02:07]} 31. Qc2 {[%clk 00:12:49]} {[%emt 00:03:17]} a6 {[%clk 00:19:01]}
{[%emt 00:01:30]} 32. Bf1 {[%clk 00:12:49]} {[%emt 00:00:09]} b5 {[%clk
00:18:50]} {[%emt 00:00:21]} 33. a4 {[%clk 00:12:21]} {[%emt 00:00:38]} Bc6
{[%clk 00:17:39]} {[%emt 00:01:22]} 34. Nb1 {[%clk 00:10:15]} {[%emt 00:02:16]}
Ne4 {[%clk 00:16:14]} {[%emt 00:01:34]} 35. axb5 {[%clk 00:09:56]} {[%emt
00:00:29]} axb5 {[%clk 00:16:23]} {[%emt 00:00:02]} 36. Na3 {[%clk 00:09:41]}
{[%emt 00:00:25]} Rd2 {[%clk 00:16:30]} {[%emt 00:00:03]} 37. Qc1 {[%clk
00:09:19]} {[%emt 00:00:32]} Qf6 {[%clk 00:16:20]} {[%emt 00:00:19]} 38. Rxd2
{[%clk 00:08:22]} {[%emt 00:01:08]} Rxd2 {[%clk 00:16:28]} {[%emt 00:00:02]} 39.
Rd1 {[%clk 00:07:59]} {[%emt 00:00:32]} Qxf2+ {[%clk 00:16:35]} {[%emt
00:00:04]} 40. Kh2 {[%clk 00:07:37]} {[%emt 00:00:32]} Qxg3+ {[%clk 00:16:43]}
{[%emt 00:00:02]} 41. Kg1 {[%clk 00:07:39]} {[%emt 00:00:08]} Qxe3+ {[%clk
00:16:50]} {[%emt 00:00:02]} 42. Kh1 {[%clk 00:07:39]} {[%emt 00:00:10]} Nf2+
{[%clk 00:16:52]} {[%emt 00:00:08]} 0-1